bitfinex-derivatives/quotes_SOLF0:USTF0_20260204
["timestamp","ask_amount","ask_price","bid_price","bid_amount"]
[1770164772782,12.55302412,98.175,98.116,21.90018202]
[1770164773087,8.3087609,98.19,98.116,21.90018202]
[1770164773288,29.04601587,98.19,98.116,21.90018202]
[1770164773593,20.73725497,98.19,98.122,21.90018202]
[1770164774087,20.73725497,98.184,98.122,21.90018202]
[1770164774392,0.06470114,98.16,98.122,21.90018202]
[1770164775694,20.73725497,98.184,98.122,21.90018202]
[1770164776093,20.73725497,98.184,98.135,9.1842]
[1770164776396,20.73725497,98.184,98.122,21.90018202]
[1770164777084,9.1783,98.199,98.136,9.1842]
[1770164777392,20.73725497,98.202,98.118,142.8912]
[1770164777393,20.73725497,98.202,98.137,21.90018202]
[1770164777788,20.73725497,98.202,98.128,549.5176]
[1770164777789,20.73725497,98.22,98.144,142.8537]
[1770164777988,20.73725497,98.22,98.153,21.90018202]
[1770164778188,12.55302412,98.236,98.153,21.90018202]
[1770164778393,20.73725497,98.239,98.153,21.90018202]
[1770164778794,9.1754,98.23,98.172,9.1808]
[1770164779096,9.1754,98.23,98.172,31.08098202]
[1770164779596,9.1762,98.222,98.172,21.90018202]
[1770164779792,20.73725497,98.228,98.154,21.90018202]
[1770164780199,20.73725497,98.228,98.159,21.90018202]
[1770164780395,20.73725497,98.228,98.148,142.8485]
[1770164780396,9.1743,98.242,98.178,21.90018202]
[1770164781490,20.73725497,98.245,98.187,9.1793]
[1770164781696,19.00236526,98.286,98.172,406.62]
[1770164781697,20.72619993,98.268,98.194,21.10620506]
[1770164782199,20.72619993,98.257,98.194,21.10620506]
[1770164782800,0.06476042,98.23,98.194,21.10620506]
[1770164783199,0.06476042,98.23,98.152,21.10620506]
[1770164783394,20.72619993,98.229,98.164,21.10620506]
[1770164783904,29.90179993,98.229,98.165,21.10620506]
[1770164785303,20.72619993,98.229,98.167,21.10620506]
[1770164785800,20.72619993,98.229,98.153,21.10620506]
[1770164786199,142.7146,98.241,98.153,21.10620506]
[1770164786200,20.72619993,98.209,98.153,21.10620506]
[1770164786804,9.1779,98.204,98.153,21.10620506]
[1770164787102,20.72619993,98.209,98.153,21.10620506]
[1770164787507,20.72619993,98.227,98.157,21.10620506]
[1770164788803,9.1759,98.225,98.167,9.1813]
[1770164789907,9.1759,98.225,98.157,21.10620506]
[1770164790104,0.06426242,98.21,98.157,21.10620506]
[1770164790907,0.06426242,98.21,98.161,21.10620506]
[1770164791407,9.1759,98.225,98.161,21.10620506]
[1770164791806,9.1759,98.225,98.165,9.1814]
[1770164792006,9.1759,98.225,98.165,30.28760506]
[1770164792201,9.1759,98.225,98.166,21.10620506]
[1770164795411,9.1759,98.225,98.168,21.10620506]
[1770164796606,9.1767,98.217,98.168,21.10620506]
[1770164797310,9.1777,98.206,98.157,9.1822]
[1770164797808,0.06465409,98.2,98.157,9.1822]
[1770164798306,0.06465409,98.2,98.157,30.28840506]
[1770164798510,0.06465409,98.2,98.158,21.10620506]
[1770164800208,29.02760899,98.22,98.13,142.8738]
[1770164800209,20.49777848,98.203,98.142,21.10620506]
[1770164801106,9.1781,98.202,98.152,9.1826]
[1770164801303,9.1781,98.202,98.142,21.10620506]
[1770164801506,9.179,98.193,98.142,21.10620506]
[1770164801707,19.82330184,98.192,98.127,21.10620506]
[1770164802911,19.79911626,98.179,98.108,21.10620506]
[1770164803407,19.79911626,98.179,98.09,142.932]
[1770164803408,19.79911626,98.179,98.111,21.10620506]
[1770164804013,0.06438275,98.16,98.111,21.10620506]
[1770164804403,0.06438275,98.16,98.112,9.1864]
[1770164804609,19.79911626,98.179,98.113,21.10620506]
[1770164805111,9.1815,98.166,98.116,9.186]
[1770164805704,9.1815,98.166,98.116,30.29220506]
[1770164806112,9.1815,98.166,98.116,21.10620506]
[1770164809009,9.1815,98.166,98.09,142.932]
[1770164809010,16.63772815,98.198,98.119,21.10620506]
[1770164809709,16.63772815,98.198,98.13,21.10620506]
[1770164810107,16.63772815,98.198,98.132,21.10620506]
[1770164811320,8.30140906,98.22,98.132,21.10620506]
[1770164811321,16.81618397,98.219,98.132,21.10620506]
[1770164811706,9.178,98.202,98.147,20.82791295]
[1770164812210,16.81618397,98.219,98.161,9.1818]
[1770164812405,16.81721568,98.236,98.17,20.82791295]
[1770164813515,16.73333502,98.259,98.17,20.82791295]
[1770164813709,9.1745,98.24,98.185,20.82791295]
[1770164813916,16.73457557,98.249,98.185,20.82791295]
[1770164814412,9.1751,98.234,98.185,20.82791295]
[1770164815314,9.1761,98.223,98.168,20.82791295]
[1770164815914,16.71857026,98.209,98.151,21.12138413]
[1770164817717,9.1777,98.206,98.151,21.12138413]
[1770164818211,0.06430759,98.19,98.151,21.12138413]
[1770164818612,9.1767,98.217,98.155,21.12138413]
[1770164818919,16.89984461,98.237,98.155,21.12138413]
[1770164819118,9.1776,98.208,98.155,21.12138413]
[1770164819716,16.9014876,98.196,98.138,21.12138413]
[1770164820220,9.1789,98.193,98.138,21.12138413]
[1770164820711,9.1806,98.175,98.12,21.12138413]
[1770164820913,16.85983393,98.176,98.12,21.12138413]
[1770164821114,16.85983393,98.166,98.081,21.12138413]
[1770164821311,16.85983393,98.166,98.077,351.4112]
[1770164821312,9.1826,98.153,98.093,21.12138413]
[1770164822116,9.1826,98.153,98.097,21.12138413]
[1770164822618,9.1836,98.143,98.097,21.12138413]
[1770164822814,9.1836,98.143,98.11,0.06522016]
[1770164823018,9.1836,98.143,98.06,8.30140906]
[1770164823019,17.43196291,98.139,98.078,21.12138413]
[1770164823214,0.06582622,98.12,98.054,21.12138413]
[1770164823517,17.43196291,98.117,98.054,21.12138413]
[1770164823717,9.1872,98.104,98.054,21.12138413]
[1770164825021,9.1862,98.115,98.054,21.12138413]
[1770164825318,17.86283407,98.132,98.059,21.12138413]
[1770164825620,26.16552301,98.13,98.059,21.12138413]
[1770164826018,9.1856,98.122,98.059,21.12138413]
[1770164826922,17.86411395,98.129,98.059,21.12138413]
[1770164827116,8.30140906,98.15,98.059,21.12138413]
[1770164827317,9.1815,98.165,98.092,21.12138413]
[1770164827719,16.14132736,98.167,98.092,21.12138413]
[1770164828025,16.14132736,98.167,98.07,8.30140906]
[1770164828026,6.70705936,98.045,97.97,21.12138413]
[1770164828225,143.0326,98.022,97.97,21.12138413]
[1770164828419,152.25,98.008,97.925,9.204]
[1770164828718,10.51476739,98.025,97.933,143.161]
[1770164828926,0.06464411,98.0,97.935,9.203]
[1770164829224,246.56,98.036,97.946,143.1418]
[1770164829418,246.56,98.036,97.97,0.06508827]
[1770164829622,257.16419831,98.036,97.97,0.06508827]
[1770164829919,143.0308,98.023,97.928,143.1685]
[1770164830224,8.30140906,98.03,97.932,143.1625]
[1770164830423,9.1951,98.02,97.942,21.12138413]
[1770164831219,9.1951,98.02,97.97,0.06605004]
[1770164831724,9.1951,98.02,97.96,21.12138413]
[1770164832219,11.90025689,98.058,97.981,21.12138413]
[1770164832422,11.90025689,98.079,97.994,21.12138413]
[1770164832825,9.1896,98.078,97.997,21.12138413]
[1770164833622,11.5374098,98.068,97.977,21.12138413]
[1770164833920,143.0069,98.04,97.977,21.12138413]
[1770164834122,151.30830906,98.04,97.977,21.12138413]
[1770164834423,9.1935,98.038,97.977,21.12138413]
[1770164835423,9.1935,98.038,98.0,0.06572599]
[1770164836425,8.30140906,98.04,98.0,0.06572599]
[1770164836818,13.02931143,98.07,98.001,21.12138413]
[1770164837220,152.1609,98.065,98.001,21.12138413]
[1770164837729,9.1911,98.063,98.001,21.12138413]
[1770164838226,9.1922,98.051,98.001,21.12138413]
[1770164841028,23.68651806,98.047,97.97,21.12628344]
[1770164841329,143.0022,98.043,97.97,21.12628344]
[1770164841535,14.51729567,98.029,97.951,21.12628344]
[1770164842631,14.51729567,98.029,97.953,21.12628344]
[1770164843135,14.51729567,98.029,97.98,0.06569626]
[1770164843734,9.1946,98.025,97.98,0.06569626]
[1770164844836,9.1946,98.025,97.956,21.12628344]
[1770164847838,23.29300528,98.025,97.956,21.12628344]
[1770164848040,9.195,98.021,97.956,21.12628344]
[1770164849236,9.195,98.021,97.958,21.12628344]
[1770164850135,9.195,98.021,97.959,9.2007]
[1770164850341,14.09840528,98.024,97.96,21.12628344]
[1770164850946,9.1948,98.023,97.964,21.12628344]
[1770164852436,14.27399773,98.018,97.96,0.06461625]
[1770164853040,9.1969,98.001,97.946,21.12628344]
[1770164853837,9.1979,97.99,97.946,21.12628344]
[1770164854941,14.3797869,97.98,97.901,21.12628344]
[1770164855145,143.0731,97.994,97.901,21.12628344]
[1770164855146,22.72056426,97.97,97.901,21.12628344]
[1770164856042,9.201,97.957,97.903,21.12628344]
[1770164856547,9.201,97.957,97.91,0.06585033]
[1770164857748,9.2001,97.967,97.91,21.19213377]
[1770164858844,9.2001,97.967,97.912,21.12628344]
[1770164860346,9.2013,97.954,97.912,21.12628344]
[1770164861238,22.72056426,97.97,97.912,21.12628344]
[1770164861445,9.2004,97.963,97.912,21.12628344]
[1770164861950,12.55080746,97.969,97.912,21.12628344]
[1770164862449,9.2,97.968,97.912,21.12628344]
[1770164862842,9.2,97.968,97.94,0.06450996]
[1770164863945,12.55080746,97.969,97.94,0.06450996]
[1770164864248,19.00236526,98.064,97.94,0.06450996]
[1770164864249,9.1987,97.982,97.94,0.06450996]
[1770164864545,7.64730867,97.981,97.929,21.12628344]
[1770164864746,7.64730867,97.98,97.929,21.12628344]
[1770164865049,7.64730867,97.979,97.929,21.12628344]
[1770164865245,7.64730867,97.978,97.929,21.12628344]
[1770164865549,7.64730867,97.977,97.929,21.12628344]
[1770164865748,7.64730867,97.976,97.929,21.12628344]
[1770164865949,9.1991,97.978,97.929,21.12628344]
[1770164866147,7.64742472,97.977,97.929,21.12628344]
[1770164866349,7.64742472,97.976,97.929,21.12628344]
[1770164866547,7.64742472,97.975,97.929,21.12628344]
[1770164866851,7.64742472,97.974,97.929,21.12628344]
[1770164867051,9.1991,97.978,97.929,21.12628344]
[1770164867351,9.1993,97.976,97.94,0.06481613]
[1770164867541,7.59115676,97.975,97.94,0.06481613]
[1770164867741,7.59115676,97.974,97.94,0.06481613]
[1770164867944,7.59115676,97.973,97.94,0.06481613]
[1770164868140,7.59115676,97.972,97.94,0.06481613]
[1770164868343,7.59115676,97.971,97.94,0.06481613]
[1770164868543,9.45198229,98.006,97.945,143.1445]
[1770164868744,20.51486922,98.02,97.947,21.12628344]
[1770164869052,12.17409186,98.019,97.947,21.12628344]
[1770164869448,12.17409186,98.019,97.962,30.32678344]
[1770164869751,12.17409186,98.019,97.963,21.12628344]
[1770164870652,9.1953,98.018,97.965,9.2002]
[1770164873950,8.34077736,98.05,97.985,22.97303152]
[1770164874257,8.34077736,98.07,98.0,22.97303152]
[1770164875453,8.34077736,98.07,98.02,0.06500564]
[1770164875654,9.1914,98.06,98.02,0.06500564]
[1770164876254,9.1914,98.06,98.0,22.97303152]
[1770164877461,9.1914,98.06,98.02,0.06436335]
[1770164878459,21.08090527,98.06,98.02,0.06436335]
[1770164878752,9.1922,98.051,98.02,0.06436335]
[1770164879950,9.1931,98.041,97.986,407.38]
[1770164880654,9.1933,98.039,97.986,407.38]
[1770164880955,7.59030549,98.038,97.982,22.06657963]
[1770164881156,9.1955,98.016,97.965,22.06657963]
[1770164881356,7.59030549,98.015,97.965,22.06657963]
[1770164881554,7.59030549,98.014,97.965,22.06657963]
[1770164881754,7.59030549,98.013,97.965,22.06657963]
[1770164881953,12.07029451,98.009,97.929,22.06657963]
[1770164882255,12.07029451,98.007,97.929,22.06657963]
[1770164882447,151.39197736,98.01,97.929,22.06657963]
[1770164882448,12.07029451,98.005,97.929,22.06657963]
[1770164882650,19.82984845,98.004,97.929,22.06657963]
[1770164882847,7.59030549,98.003,97.929,22.06657963]
[1770164883049,7.59030549,98.002,97.929,22.06657963]
[1770164883257,9.197,98.0,97.933,22.06657963]
[1770164883555,7.59030549,97.999,97.933,22.06657963]
[1770164883749,7.59030549,97.998,97.933,22.06657963]
[1770164883953,7.59030549,97.998,97.919,363.22]
[1770164883954,9.1975,97.995,97.937,31.26937963]
[1770164884153,7.59030549,97.994,97.941,22.06657963]
[1770164884354,12.25238493,98.022,97.941,22.06657963]
[1770164884659,12.52511799,98.02,97.941,22.06657963]
[1770164884852,142.9895,98.052,97.959,22.06657963]
[1770164884853,7.60053393,98.019,97.959,22.06657963]
[1770164885155,7.60053393,98.019,97.957,143.127]
[1770164885156,7.60053393,98.018,97.961,22.06657963]
[1770164885361,7.60053393,98.017,97.961,22.06657963]
[1770164885659,7.60053393,98.017,97.92,143.1809]
[1770164885660,12.53772352,97.98,97.917,22.06657963]
[1770164885852,12.53772352,97.969,97.899,22.06657963]
[1770164886055,7.60053393,97.968,97.899,22.06657963]
[1770164886363,143.0377,98.019,97.908,22.06657963]
[1770164886364,7.60053393,97.967,97.908,22.06657963]
[1770164886553,12.53772352,97.988,97.911,22.06657963]
[1770164886760,7.59912274,97.987,97.911,22.06657963]
[1770164886956,7.59912274,97.986,97.911,22.06657963]
[1770164887155,9.1985,97.984,97.911,31.27187963]
[1770164887459,7.59912274,97.983,97.912,22.06657963]
[1770164887757,7.59912274,97.982,97.912,22.06657963]
[1770164887962,7.59912274,97.981,97.912,22.06657963]
[1770164888163,7.59912274,97.98,97.912,22.06657963]
[1770164888363,7.59912274,97.979,97.912,22.06657963]
[1770164888559,9.1994,97.974,97.912,22.06657963]
[1770164888764,7.59912274,97.973,97.912,22.06657963]
[1770164888964,7.59912274,97.972,97.912,22.06657963]
[1770164889264,7.59912274,97.971,97.912,22.06657963]
[1770164889460,8.34077736,98.01,97.924,22.06657963]
[1770164889662,14.6900828,98.009,97.924,22.06657963]
[1770164889955,8.34077736,97.99,97.924,22.06657963]
[1770164890167,14.6900828,97.986,97.924,22.06657963]
[1770164890763,9.1994,97.975,97.924,22.06657963]
[1770164893368,0.06499505,97.94,97.924,22.06657963]
[1770164893766,9.1994,97.975,97.924,22.06657963]
[1770164894070,9.1999,97.969,97.907,22.06657963]
[1770164894873,9.2006,97.962,97.907,22.06657963]
[1770164895371,13.19919448,97.968,97.909,22.06657963]
[1770164896663,9.2003,97.965,97.909,22.06657963]
[1770164897767,9.2013,97.954,97.909,22.06657963]
[1770164897964,9.2013,97.954,97.894,22.06657963]
[1770164898776,9.2013,97.954,97.91,0.06608306]
[1770164899772,9.2003,97.965,97.91,0.06608306]
[1770164900479,9.2003,97.965,97.894,22.06657963]
[1770164900677,8.34077736,97.97,97.885,407.42]
[1770164900678,9.2007,97.961,97.897,23.06751433]
[1770164901481,13.50607942,97.959,97.897,23.06751433]
[1770164901682,13.50607942,97.957,97.897,23.06751433]
[1770164901885,13.50607942,97.955,97.897,23.06751433]
[1770164902181,13.50607942,97.953,97.897,23.06751433]
[1770164902385,7.60786819,97.952,97.897,23.06751433]
[1770164902577,13.50607942,97.953,97.897,23.06751433]
[1770164902578,7.60786819,97.951,97.897,23.06751433]
[1770164902780,7.60786819,97.95,97.9,9.2063]
[1770164902981,7.60786819,97.949,97.9,9.2063]
[1770164903285,7.60786819,97.948,97.9,9.2063]
[1770164903478,7.60786819,97.947,97.908,23.06751433]
[1770164903678,7.60786819,97.946,97.908,23.06751433]
[1770164903882,7.60786819,97.945,97.911,23.06751433]
[1770164904084,9.2005,97.963,97.911,23.06751433]
[1770164904286,9.201,97.958,97.911,23.06751433]
[1770164904576,7.60157843,97.957,97.911,23.06751433]
[1770164904881,7.60157843,97.956,97.911,23.06751433]
[1770164905087,7.60157843,97.955,97.911,23.06751433]
[1770164905286,7.60157843,97.954,97.911,23.06751433]
[1770164905490,7.60157843,97.953,97.911,23.06751433]
[1770164905686,9.1996,97.972,97.917,23.06751433]
[1770164905893,8.3507115,97.99,97.919,23.06751433]
[1770164906292,29.47212249,97.99,97.919,23.06751433]
[1770164906799,9.1972,97.998,97.943,23.06751433]
[1770164907090,143.0622,98.002,97.943,23.06751433]
[1770164907296,21.14621007,97.989,97.94,0.06443702]
[1770164907497,30.62173153,97.989,97.94,0.06443702]
[1770164907692,21.08179761,97.988,97.94,0.06443702]
[1770164907892,21.08179761,97.988,97.926,23.06751433]
[1770164908392,30.28139761,97.973,97.908,23.06751433]
[1770164908895,30.28139761,97.973,97.95,0.00125466]
[1770164909194,9.47552146,97.984,97.923,23.06751433]
[1770164909387,21.10559271,97.999,97.925,23.06751433]
[1770164909592,21.10559271,97.999,97.927,23.06751433]
[1770164909785,9.1964,98.006,97.944,23.06751433]
[1770164912696,0.06439501,97.98,97.944,23.06751433]
[1770164914297,8.3507115,98.01,97.953,23.06751433]
[1770164914599,29.60749855,98.01,97.953,23.06751433]
[1770164914999,21.25678705,98.009,97.953,23.06751433]
[1770164915302,9.1969,98.001,97.953,23.06751433]
[1770164917700,7.57772003,98.0,97.953,23.06751433]
[1770164918002,7.57772003,97.999,97.96,0.0645694]
[1770164918300,21.25678705,97.997,97.96,0.0645694]
[1770164918495,7.57772003,97.996,97.96,0.0645694]
[1770164918696,7.57772003,97.995,97.96,0.0645694]
[1770164918898,7.57772003,97.994,97.96,0.0645694]
[1770164919095,7.57772003,97.993,97.96,0.0645694]
[1770164919297,7.57772003,97.992,97.96,0.0645694]
[1770164919601,7.57772003,97.991,97.96,0.0645694]
[1770164919797,7.57772003,97.99,97.952,23.06751433]
[1770164920099,7.57772003,97.989,97.952,23.06751433]
[1770164920302,7.57772003,97.988,97.952,23.06751433]
[1770164920502,7.57772003,97.987,97.952,23.06751433]
[1770164920702,7.57772003,97.986,97.952,23.06751433]
[1770164920902,7.57772003,97.985,97.952,23.06751433]
[1770164921103,7.57772003,97.984,97.952,23.06751433]
[1770164921304,7.57772003,97.983,97.952,23.06751433]
[1770164921505,7.57772003,97.982,97.952,23.06751433]
[1770164921809,7.57772003,97.981,97.952,23.06751433]
[1770164921999,7.57772003,97.98,97.952,23.06751433]
[1770164922200,9.1976,97.994,97.952,23.06751433]
[1770164922201,7.57772003,97.979,97.952,23.06751433]
[1770164922401,7.57772003,97.978,97.952,23.06751433]
[1770164922597,7.57772003,97.977,97.952,23.06751433]
[1770164922805,7.57772003,97.976,97.952,23.06751433]
[1770164923107,7.57772003,97.975,97.952,23.06751433]
[1770164923297,7.57772003,97.974,97.952,23.06751433]
[1770164923498,7.57772003,97.973,97.952,23.06751433]
[1770164923698,7.57772003,97.972,97.952,23.06751433]
[1770164923902,7.57772003,97.971,97.952,23.06751433]
[1770164924102,7.57772003,97.97,97.952,23.06751433]
[1770164924308,7.57772003,97.969,97.952,23.06751433]
[1770164924509,7.57772003,97.968,97.952,23.06751433]
[1770164924710,7.57772003,97.967,97.952,23.06751433]
[1770164925013,9.47552146,97.991,97.952,23.06751433]
[1770164925208,9.47552146,97.987,97.952,23.06751433]
[1770164925610,9.1976,97.994,97.952,23.06751433]
[1770164925913,21.25678705,97.998,97.952,23.06751433]
[1770164925914,9.47552146,97.996,97.952,23.06751433]
[1770164926309,9.47552146,97.995,97.952,23.06751433]
[1770164926512,9.47552146,97.997,97.952,23.06751433]
[1770164927008,21.25678705,97.998,97.952,23.06751433]
[1770164928010,9.47552146,98.003,97.956,23.06751433]
[1770164928211,21.25678705,98.023,97.96,23.06751433]
[1770164928410,3.33514212,98.02,97.96,26.40265645]
[1770164929614,3.33514212,98.01,97.968,23.06751433]
[1770164930506,9.47552146,98.019,97.97,22.13871593]
[1770164930911,3.33514212,98.01,97.97,22.13871593]
[1770164931612,3.33514212,98.0,97.97,22.13871593]
[1770164933720,3.33514212,97.99,97.953,22.13871593]
[1770164934415,3.33514212,97.98,97.953,22.13871593]
[1770164935513,3.33514212,97.98,97.95,0.0645112]
[1770164935712,9.198,97.989,97.95,0.0645112]
[1770164936325,3.33514212,97.99,97.95,0.0645112]
[1770164936922,7.51388954,97.989,97.95,0.0645112]
[1770164937121,7.51388954,97.988,97.95,0.0645112]
[1770164937321,7.51388954,97.987,97.95,0.0645112]
[1770164937519,7.51388954,97.986,97.95,0.0645112]
[1770164937719,7.51388954,97.985,97.94,22.40917744]
[1770164938016,7.51388954,97.984,97.94,22.40917744]
[1770164938221,7.51388954,97.983,97.94,22.40917744]
[1770164938520,7.51388954,97.982,97.94,22.40917744]
[1770164938828,7.51388954,97.981,97.94,22.40917744]
[1770164939024,7.51388954,97.98,97.94,22.40917744]
[1770164939216,7.51388954,97.979,97.94,22.40917744]
[1770164939525,7.51388954,97.978,97.94,22.40917744]
[1770164939725,7.51388954,97.977,97.94,22.40917744]
[1770164939927,7.51388954,97.976,97.94,22.40917744]
[1770164940123,7.51388954,97.975,97.94,22.40917744]
[1770164940426,7.51388954,97.974,97.94,22.40917744]
[1770164940627,7.51388954,97.973,97.94,22.40917744]
[1770164940925,7.51388954,97.972,97.94,22.40917744]
[1770164941226,7.51388954,97.971,97.94,22.40917744]
[1770164941427,7.51388954,97.97,97.94,22.40917744]
[1770164941625,7.51388954,97.969,97.94,22.40917744]
[1770164941824,7.51388954,97.968,97.94,22.40917744]
[1770164942025,7.51388954,97.967,97.94,22.40917744]
[1770164942226,7.51388954,97.966,97.94,22.40917744]
[1770164942423,3.33514212,97.96,97.916,22.40917744]
[1770164942728,7.51388954,97.959,97.916,22.40917744]
[1770164943019,7.51388954,97.958,97.916,22.40917744]
[1770164943221,7.51388954,97.957,97.916,22.40917744]
[1770164943416,7.51388954,97.956,97.916,22.40917744]
[1770164943618,7.51388954,97.955,97.916,22.40917744]
[1770164943823,7.51388954,97.954,97.916,31.61397744]
[1770164944128,7.51388954,97.953,97.917,22.40917744]
[1770164944331,7.51388954,97.952,97.917,22.40917744]
[1770164944524,7.51388954,97.951,97.917,22.40917744]
[1770164944731,7.51388954,97.95,97.917,22.40917744]
[1770164945025,7.51388954,97.949,97.921,31.61347744]
[1770164945230,7.51388954,97.948,97.906,22.40917744]
[1770164945529,7.51388954,97.947,97.906,22.40917744]
[1770164945725,23.9226472,97.964,97.906,22.40917744]
[1770164945726,7.51388954,97.946,97.906,22.40917744]
[1770164945922,7.51388954,97.945,97.906,22.40917744]
[1770164946121,7.51388954,97.944,97.906,22.40917744]
[1770164946426,7.51388954,97.943,97.906,22.40917744]
[1770164946626,7.51388954,97.942,97.906,22.40917744]
[1770164946823,8.954e-05,97.941,97.915,31.61407744]
[1770164947026,23.9226472,97.964,97.915,31.61407744]
[1770164947528,23.9226472,97.964,97.916,22.40917744]
[1770164948422,23.9226472,97.964,97.918,9.2046]
[1770164948622,23.9226472,97.964,97.918,31.61377744]
[1770164949235,3.33514212,97.96,97.918,31.61377744]
[1770164949525,3.33514212,97.96,97.91,407.42]
[1770164949526,9.47552146,97.971,97.923,22.40917744]
[1770164949722,9.47552146,97.993,97.934,22.40917744]
[1770164949921,9.47552146,97.998,97.94,3.33514212]
[1770164950132,9.47552146,97.998,97.941,22.40917744]
[1770164950322,9.47552146,97.997,97.946,9.2019]
[1770164950630,9.47552146,97.994,97.947,22.40917744]
[1770164951432,9.47552146,97.994,97.946,9.2019]
[1770164951433,9.47552146,97.995,97.951,22.40917744]
[1770164951628,9.47552146,98.004,97.951,22.40917744]
[1770164951834,33.39816866,98.009,97.953,22.40917744]
[1770164952232,9.47552146,98.015,97.961,22.40917744]
[1770164952431,12.81066358,98.02,97.963,22.40917744]
[1770164952831,9.47552146,98.024,97.971,22.40917744]
[1770164953034,9.47552146,98.025,97.971,22.40917744]
[1770164953328,9.47552146,98.026,97.971,22.40917744]
[1770164953533,9.47552146,98.026,97.972,22.40917744]
[1770164954237,9.47552146,98.025,97.975,22.40917744]
[1770164954436,23.9226472,98.019,97.962,407.44]
[1770164954634,23.9226472,98.019,97.963,22.40917744]
[1770164954827,3.33514212,98.02,97.963,22.40917744]
[1770164955031,3.33514212,98.02,97.964,22.40917744]
[1770164955632,3.33514212,98.02,97.969,9.1998]
[1770164955832,3.33514212,98.02,97.97,22.40917744]
[1770164956427,27.25778932,98.05,97.991,22.40917744]
[1770164956634,3.33514212,98.06,98.001,22.40917744]
[1770164956834,3.33514212,98.06,98.003,22.40917744]
[1770164957136,3.33514212,98.04,98.003,22.40917744]
[1770164957333,3.33514212,98.04,97.992,407.38]
[1770164957725,3.33514212,98.04,97.993,22.40917744]
[1770164958230,3.33514212,98.03,97.993,22.40917744]
[1770164958926,7.48831394,98.029,97.993,22.40917744]
[1770164959127,7.48831394,98.028,97.993,22.40917744]
[1770164959332,7.48831394,98.027,97.993,22.40917744]
[1770164959634,7.48831394,98.026,97.993,22.40917744]
[1770164959836,7.48831394,98.025,97.993,22.40917744]
[1770164960132,7.48831394,98.024,97.993,22.40917744]
[1770164960331,7.48831394,98.023,97.993,22.40917744]
[1770164960529,7.48831394,98.022,97.993,22.40917744]
[1770164960733,7.48831394,98.021,97.993,22.40917744]
[1770164961035,10.82345606,98.02,97.986,407.34]
[1770164961237,7.48831394,98.019,97.986,407.34]
[1770164961428,7.48831394,98.018,97.987,23.1385374]
[1770164961633,7.48831394,98.017,97.987,23.1385374]
[1770164961828,7.48831394,98.016,97.987,23.1385374]
[1770164962030,7.48831394,98.016,97.986,407.34]
[1770164962031,1.394e-05,98.015,97.988,23.1385374]
[1770164962230,23.9226472,98.04,97.988,23.1385374]
[1770164963936,23.9226472,98.04,97.991,23.1385374]
[1770164964434,27.25778932,98.04,97.991,23.1385374]
[1770164965839,3.33514212,98.05,97.991,23.1385374]
[1770164966137,3.33514212,98.05,97.885,18.9268656]
[1770164966138,3.33514212,98.01,97.963,23.1385374]
[1770164966337,3.33626975,98.01,97.963,23.1385374]
[1770164968340,3.33626975,98.01,97.965,32.3386374]
[1770164968638,3.33626975,98.02,97.966,23.1385374]
[1770164968838,3.33626975,98.02,97.967,23.1385374]
[1770164969733,3.33626975,98.02,97.974,9.1994]
[1770164970135,3.33626975,98.02,97.975,23.1385374]
[1770164972443,3.33626975,98.01,97.975,23.1385374]
[1770164973944,3.33626975,98.0,97.958,23.1385374]
[1770164974247,7.44573193,97.999,97.958,23.1385374]
[1770164974451,3.33626975,97.99,97.958,23.1385374]
[1770164974844,3.33626975,98.0,97.958,23.1385374]
[1770164975044,7.44600331,97.999,97.958,23.1385374]
[1770164975241,7.44600331,97.998,97.958,23.1385374]
[1770164975547,7.44600331,97.997,97.958,23.1385374]
[1770164975746,7.44600331,97.996,97.958,23.1385374]
[1770164975943,3.33626975,97.99,97.958,23.1385374]
[1770164976148,7.44600331,97.989,97.958,23.1385374]
[1770164976345,7.44600331,97.988,97.958,23.1385374]
[1770164976552,7.44600331,97.987,97.958,23.1385374]
[1770164976748,26.13158426,98.02,97.968,9.1999]
[1770164976955,3.33626975,98.03,97.969,341.1585374]
[1770164977150,3.33626975,98.03,97.97,23.1385374]
[1770164977451,9.1946,98.026,97.97,23.1385374]
[1770164978357,3.33626975,98.03,97.973,23.1385374]
[1770164979152,3.33626975,98.03,97.98,23.1385374]
[1770164981058,12.60041591,98.074,97.987,23.1385374]
[1770164981259,3.33626975,98.08,98.013,23.1385374]
[1770164981462,22.79531451,98.084,98.021,23.1385374]
[1770164981666,3.33626975,98.09,98.044,23.1385374]
[1770164982155,22.79531451,98.099,98.044,23.1385374]
[1770164982358,22.79531451,98.099,98.046,23.1385374]
[1770164982662,3.33626975,98.09,98.046,23.1385374]
[1770164984461,3.33626975,98.09,98.046,32.3311374]
[1770164986863,3.33626975,98.09,98.046,23.1385374]
[1770164987964,22.79531451,98.099,98.046,23.1385374]
[1770164988866,22.79531451,98.099,98.053,9.192]
[1770164989062,22.79531451,98.099,98.046,23.1385374]